[Event "*** Titled Tuesday Blitz"]
[Site "Chess.com"]
[Date "2020.11.24"]
[Round "1"]
[White "penguingm1"]
[Black "JulAnt"]
[Result "1-0"]
[WhiteElo "2990"]
[BlackElo "2459"]
[TimeControl "180+1"]
[EndTime "10:22:33 PST"]
[Termination "penguingm1 won by resignation"]

1. d4 {[%clk 0:02:56.2]} 1... Nf6 {[%clk 0:02:59.6]} 2. g4 {[%clk 0:02:56.8]}
2... Nxg4 {[%clk 0:02:57.1]} 3. e4 {[%clk 0:02:57.2]} 3... d5 {[%clk 0:02:48.1]}
4. Be2 {[%clk 0:02:55.2]} 4... Nf6 {[%clk 0:02:45]} 5. e5 {[%clk 0:02:55.1]}
5... Ng8 {[%clk 0:02:45.3]} 6. c4 {[%clk 0:02:50.6]} 6... Bf5 {[%clk 0:02:42.5]}
7. Nc3 {[%clk 0:02:48.9]} 7... e6 {[%clk 0:02:41.5]} 8. Be3 {[%clk 0:02:39.8]}
8... Nc6 {[%clk 0:02:38.1]} 9. cxd5 {[%clk 0:02:30.7]} 9... exd5 {[%clk
0:02:31.8]} 10. Nf3 {[%clk 0:02:30.6]} 10... Bb4 {[%clk 0:02:27.5]} 11. Rg1
{[%clk 0:02:16.7]} 11... Bg6 {[%clk 0:02:24.2]} 12. Qb3 {[%clk 0:01:54.9]} 12...
Nge7 {[%clk 0:02:21.4]} 13. Nh4 {[%clk 0:01:32.8]} 13... O-O {[%clk 0:02:13.5]}
14. O-O-O {[%clk 0:01:28.5]} 14... a5 {[%clk 0:02:04.5]} 15. Nxg6 {[%clk
0:01:27.8]} 15... fxg6 {[%clk 0:01:53.9]} 16. Kb1 {[%clk 0:01:22]} 16... Bxc3
{[%clk 0:01:44.3]} 17. Qxc3 {[%clk 0:01:21.5]} 17... Nf5 {[%clk 0:01:42.5]} 18.
Bg5 {[%clk 0:01:09.6]} 18... Qd7 {[%clk 0:01:38]} 19. Bg4 {[%clk 0:00:58.7]}
19... Qf7 {[%clk 0:01:33.9]} 20. a3 {[%clk 0:00:56.1]} 20... h6 {[%clk
0:01:23.9]} 21. Bc1 {[%clk 0:00:45.1]} 21... Rae8 {[%clk 0:01:19.3]} 22. Rd3
{[%clk 0:00:32.4]} 22... Kh8 {[%clk 0:01:07.2]} 23. Ka1 {[%clk 0:00:25.2]} 23...
Qe7 {[%clk 0:01:02.6]} 24. f4 {[%clk 0:00:19.2]} 24... Qh4 {[%clk 0:00:58.7]}
25. Rh3 {[%clk 0:00:18.6]} 25... Qf2 {[%clk 0:00:52.5]} 26. Rd1 {[%clk
0:00:12.4]} 26... Nfxd4 {[%clk 0:00:45.9]} 27. Kb1 {[%clk 0:00:10.2]} 27... Nf5
{[%clk 0:00:37.1]} 28. Rxd5 {[%clk 0:00:07.4]} 28... Rd8 {[%clk 0:00:25.2]} 29.
Qf3 {[%clk 0:00:07.5]} 29... Qxf3 {[%clk 0:00:24.8]} 30. Bxf3 {[%clk 0:00:08.4]}
30... Rxd5 {[%clk 0:00:22.9]} 31. Bxd5 {[%clk 0:00:09.3]} 31... Nfe7 {[%clk
0:00:22.4]} 32. Be4 {[%clk 0:00:09.2]} 32... Nd4 {[%clk 0:00:19.3]} 33. Bxb7
{[%clk 0:00:08.9]} 33... Ne6 {[%clk 0:00:19.3]} 34. Rf3 {[%clk 0:00:08.4]} 34...
g5 {[%clk 0:00:18.4]} 35. fxg5 {[%clk 0:00:08.1]} 35... Rxf3 {[%clk 0:00:18.5]}
36. Bxf3 {[%clk 0:00:09]} 36... hxg5 {[%clk 0:00:18.9]} 37. Bg4 {[%clk
0:00:07.6]} 37... Nf4 {[%clk 0:00:17]} 38. h4 {[%clk 0:00:07.5]} 38... Neg6
{[%clk 0:00:16.2]} 39. hxg5 {[%clk 0:00:07.3]} 39... Nd3 {[%clk 0:00:15.1]} 40.
e6 {[%clk 0:00:07.3]} 40... Kg8 {[%clk 0:00:11.2]} 41. Bf5 {[%clk 0:00:06.6]}
41... Nxc1 {[%clk 0:00:08.5]} 42. Bxg6 {[%clk 0:00:06.1]} 42... Nb3 {[%clk
0:00:06.9]} 43. e7 {[%clk 0:00:06.2]} 1-0

[Event "*** Titled Tuesday Blitz"]
[Site "Chess.com"]
[Date "2020.11.24"]
[Round "1"]
[White "grzechu96"]
[Black "SergeyShtyka"]
[Result "1-0"]
[WhiteElo "2687"]
[BlackElo "2363"]
[TimeControl "180+1"]
[EndTime "10:22:33 PST"]
[Termination "grzechu96 won by resignation"]

1. e4 {[%clk 0:03:00.2]} 1... c5 {[%clk 0:02:57.8]} 2. Nc3 {[%clk 0:02:59]} 2...
Nc6 {[%clk 0:02:57.6]} 3. Bb5 {[%clk 0:02:57.6]} 3... g6 {[%clk 0:02:54.9]} 4.
Bxc6 {[%clk 0:02:56.3]} 4... dxc6 {[%clk 0:02:55]} 5. d3 {[%clk 0:02:56.6]} 5...
Bg7 {[%clk 0:02:54.6]} 6. f4 {[%clk 0:02:56.5]} 6... e5 {[%clk 0:02:50.7]} 7.
Nf3 {[%clk 0:02:51.1]} 7... exf4 {[%clk 0:02:48.4]} 8. Bxf4 {[%clk 0:02:51.8]}
8... Ne7 {[%clk 0:02:40.7]} 9. Qd2 {[%clk 0:02:50.4]} 9... O-O {[%clk 0:02:39]}
10. Bh6 {[%clk 0:02:43.9]} 10... Bg4 {[%clk 0:02:09.4]} 11. Bxg7 {[%clk
0:02:19.6]} 11... Kxg7 {[%clk 0:02:10.3]} 12. O-O-O {[%clk 0:01:59.4]} 12...
Bxf3 {[%clk 0:02:00.9]} 13. gxf3 {[%clk 0:01:59.4]} 13... f5 {[%clk 0:01:47.5]}
14. h4 {[%clk 0:01:54.7]} 14... f4 {[%clk 0:01:39.3]} 15. Rdg1 {[%clk
0:01:20.6]} 15... Qd4 {[%clk 0:01:23.1]} 16. Ne2 {[%clk 0:01:12.1]} 16... Qe3
{[%clk 0:01:21.2]} 17. Qxe3 {[%clk 0:01:10.9]} 17... fxe3 {[%clk 0:01:21.4]} 18.
f4 {[%clk 0:01:10.8]} 18... c4 {[%clk 0:01:08.7]} 19. Rh3 {[%clk 0:01:08.8]}
19... cxd3 {[%clk 0:01:08.2]} 20. cxd3 {[%clk 0:01:09.4]} 20... c5 {[%clk
0:01:07.5]} 21. Rxe3 {[%clk 0:01:09.3]} 21... Nc6 {[%clk 0:01:07.8]} 22. h5
{[%clk 0:01:07.3]} 22... Nd4 {[%clk 0:01:05.5]} 23. hxg6 {[%clk 0:00:58.3]}
23... Nxe2+ {[%clk 0:00:40.5]} 24. Rxe2 {[%clk 0:00:59.1]} 24... Rxf4 {[%clk
0:00:40.8]} 25. gxh7+ {[%clk 0:00:58.9]} 25... Kh8 {[%clk 0:00:41.3]} 26. Reg2
{[%clk 0:00:58.9]} 26... Raf8 {[%clk 0:00:34.1]} 27. Rg8+ {[%clk 0:00:56.1]}
27... Kxh7 {[%clk 0:00:34.4]} 28. R1g7+ {[%clk 0:00:53.8]} 28... Kh6 {[%clk
0:00:34.3]} 29. Rxf8 {[%clk 0:00:53.6]} 29... Rxf8 {[%clk 0:00:33.5]} 30. Rxb7
{[%clk 0:00:53.8]} 30... Rf3 {[%clk 0:00:30.4]} 31. Kc2 {[%clk 0:00:53.5]} 31...
Kg5 {[%clk 0:00:26.5]} 32. Rb5 {[%clk 0:00:48.5]} 32... Kf4 {[%clk 0:00:25.8]}
33. Rxc5 {[%clk 0:00:48.9]} 33... Ke3 {[%clk 0:00:26.2]} 34. Rd5 {[%clk
0:00:44.9]} 34... Rf8 {[%clk 0:00:23]} 35. b4 {[%clk 0:00:37.7]} 35... Rc8+
{[%clk 0:00:22.2]} 36. Kb3 {[%clk 0:00:36.9]} 36... Kd2 {[%clk 0:00:23.1]} 37.
b5 {[%clk 0:00:30.4]} 37... Kc1 {[%clk 0:00:18.8]} 38. a4 {[%clk 0:00:29.4]}
38... a6 {[%clk 0:00:18.2]} 39. bxa6 {[%clk 0:00:28.3]} 39... Rc6 {[%clk
0:00:16.3]} 40. Ra5 {[%clk 0:00:26.2]} 40... Rc8 {[%clk 0:00:16.5]} 41. a7
{[%clk 0:00:26.5]} 41... Ra8 {[%clk 0:00:16.7]} 42. e5 {[%clk 0:00:26.3]} 42...
Kb1 {[%clk 0:00:16.9]} 43. e6 {[%clk 0:00:25.2]} 43... Ka1 {[%clk 0:00:17.3]}
44. Re5 {[%clk 0:00:23]} 1-0

[Event "*** Titled Tuesday Blitz"]
[Site "Chess.com"]
[Date "2020.11.24"]
[Round "1"]
[White "J36225"]
[Black "RaneshRatnesan"]
[Result "0-1"]
[WhiteElo "2455"]
[BlackElo "2136"]
[TimeControl "180+1"]
[EndTime "10:22:35 PST"]
[Termination "RaneshRatnesan won by checkmate"]

1. e4 {[%clk 0:03:00]} 1... c5 {[%clk 0:03:00]} 2. Nf3 {[%clk 0:02:59.3]} 2...
d6 {[%clk 0:03:00.6]} 3. Bb5+ {[%clk 0:02:57.8]} 3... Nc6 {[%clk 0:03:00]} 4.
O-O {[%clk 0:02:57.1]} 4... Bd7 {[%clk 0:03:00.4]} 5. Re1 {[%clk 0:02:56.8]}
5... a6 {[%clk 0:03:00.4]} 6. Bf1 {[%clk 0:02:56.6]} 6... e5 {[%clk 0:02:58.4]}
7. c3 {[%clk 0:02:56.3]} 7... Bg4 {[%clk 0:02:51.1]} 8. d4 {[%clk 0:02:56.3]}
8... cxd4 {[%clk 0:02:49.5]} 9. h3 {[%clk 0:02:51.1]} 9... Bxf3 {[%clk
0:02:44.3]} 10. Qxf3 {[%clk 0:02:50.7]} 10... Nf6 {[%clk 0:02:45.1]} 11. Bg5
{[%clk 0:02:48.6]} 11... Be7 {[%clk 0:02:45.2]} 12. Bc4 {[%clk 0:02:48.2]} 12...
O-O {[%clk 0:02:44.9]} 13. Bxf6 {[%clk 0:02:46.9]} 13... Bxf6 {[%clk 0:02:45.1]}
14. Bd5 {[%clk 0:02:47.2]} 14... dxc3 {[%clk 0:02:43.6]} 15. Nxc3 {[%clk
0:02:48.1]} 15... Nd4 {[%clk 0:02:43.9]} 16. Qd3 {[%clk 0:02:46.4]} 16... Rb8
{[%clk 0:02:43.4]} 17. Ne2 {[%clk 0:02:45.5]} 17... Nxe2+ {[%clk 0:02:42.6]} 18.
Rxe2 {[%clk 0:02:45]} 18... b5 {[%clk 0:02:42.3]} 19. Rc1 {[%clk 0:02:43.7]}
19... Qa5 {[%clk 0:02:34.6]} 20. Qc3 {[%clk 0:02:10.4]} 20... Qxc3 {[%clk
0:02:30.6]} 21. Rxc3 {[%clk 0:02:11.3]} 21... Rbc8 {[%clk 0:02:23.4]} 22. Rec2
{[%clk 0:02:10.4]} 22... Rxc3 {[%clk 0:02:18]} 23. Rxc3 {[%clk 0:02:11.3]} 23...
Bd8 {[%clk 0:02:10.3]} 24. Rc6 {[%clk 0:02:09.2]} 24... a5 {[%clk 0:02:09.6]}
25. Rxd6 {[%clk 0:02:08]} 25... g6 {[%clk 0:02:07.2]} 26. Rd7 {[%clk 0:02:06]}
26... Kg7 {[%clk 0:02:07]} 27. Rb7 {[%clk 0:01:57.2]} 27... b4 {[%clk 0:02:07]}
28. f3 {[%clk 0:01:52.1]} 28... Kf6 {[%clk 0:02:05.3]} 29. Kf1 {[%clk
0:01:51.4]} 29... h5 {[%clk 0:02:04.3]} 30. h4 {[%clk 0:01:46.7]} 30... Kg7
{[%clk 0:02:02.4]} 31. g3 {[%clk 0:01:45.8]} 31... g5 {[%clk 0:01:57]} 32. hxg5
{[%clk 0:01:42.7]} 32... Bxg5 {[%clk 0:01:57.9]} 33. Kg2 {[%clk 0:01:41.6]}
33... Kg6 {[%clk 0:01:55.7]} 34. Ra7 {[%clk 0:01:33.1]} 34... Bd8 {[%clk
0:01:55.4]} 35. f4 {[%clk 0:01:25.6]} 35... f6 {[%clk 0:01:45.5]} 36. f5+ {[%clk
0:01:18.6]} 36... Kh6 {[%clk 0:01:45.8]} 37. Kh3 {[%clk 0:01:17.1]} 37... Bb6
{[%clk 0:01:39.7]} 38. Rb7 {[%clk 0:01:15.9]} 38... Bd8 {[%clk 0:01:36.1]} 39.
Bf7 {[%clk 0:01:14.1]} 39... Kg5 {[%clk 0:01:26.1]} 40. Be6 {[%clk 0:01:06.1]}
40... Kh6 {[%clk 0:01:24.9]} 41. Kh4 {[%clk 0:01:03.2]} 41... Rh8 {[%clk
0:01:16.1]} 42. Rd7 {[%clk 0:00:56.3]} 42... Bb6 {[%clk 0:01:11.7]} 43. Bf7
{[%clk 0:00:20.5]} 43... Rh7 {[%clk 0:01:07]} 44. Rd6 {[%clk 0:00:19.3]} 44...
Rxf7 {[%clk 0:01:05.7]} 45. Rxb6 {[%clk 0:00:19.1]} 45... Kg7 {[%clk 0:01:02.4]}
46. Rb5 {[%clk 0:00:18.2]} 46... Rc7 {[%clk 0:01:01.8]} 47. Rxa5 {[%clk
0:00:18.3]} 47... Rc4 {[%clk 0:01:02.3]} 48. Kxh5 {[%clk 0:00:16.8]} 48... Rxe4
{[%clk 0:01:01.5]} 49. Ra7+ {[%clk 0:00:17]} 49... Kg8 {[%clk 0:01:02.1]} 50.
Kg6 {[%clk 0:00:17]} 50... Rg4+ {[%clk 0:01:02.8]} 51. Kxf6 {[%clk 0:00:17.3]}
51... Rxg3 {[%clk 0:01:03.5]} 52. Ra8+ {[%clk 0:00:17.5]} 52... Kh7 {[%clk
0:01:03.2]} 53. Kxe5 {[%clk 0:00:18.4]} 53... Rg2 {[%clk 0:00:58.8]} 54. Kf6
{[%clk 0:00:18.1]} 54... Rxb2 {[%clk 0:00:57.1]} 55. Kf7 {[%clk 0:00:18.3]}
55... b3 {[%clk 0:00:54.7]} 56. Ra4 {[%clk 0:00:16]} 56... Kh6 {[%clk
0:00:52.5]} 57. axb3 {[%clk 0:00:15]} 57... Rxb3 {[%clk 0:00:53.4]} 58. Ra3
{[%clk 0:00:13.4]} 58... Rxa3 {[%clk 0:00:52.3]} 59. f6 {[%clk 0:00:13]} 59...
Ra7+ {[%clk 0:00:50.8]} 60. Kg8 {[%clk 0:00:12.8]} 60... Kg6 {[%clk 0:00:51.2]}
61. f7 {[%clk 0:00:12.8]} 61... Rxf7 {[%clk 0:00:51]} 62. Kh8 {[%clk 0:00:13.7]}
62... Rf8# {[%clk 0:00:51.9]} 0-1

[Event "*** Titled Tuesday Blitz"]
[Site "Chess.com"]
[Date "2020.11.24"]
[Round "1"]
[White "TigrVShlyape"]
[Black "Xeniya2005"]
[Result "1-0"]
[WhiteElo "2808"]
[BlackElo "2415"]
[TimeControl "180+1"]
[EndTime "10:22:37 PST"]
[Termination "TigrVShlyape won by resignation"]

1. d4 {[%clk 0:03:00.9]} 1... Nf6 {[%clk 0:02:59]} 2. Nf3 {[%clk 0:02:54.6]}
2... e6 {[%clk 0:02:55.8]} 3. Bf4 {[%clk 0:02:53.6]} 3... d5 {[%clk 0:02:52.3]}
4. e3 {[%clk 0:02:49.6]} 4... Be7 {[%clk 0:02:48.8]} 5. Nbd2 {[%clk 0:02:48.5]}
5... O-O {[%clk 0:02:47.3]} 6. Bd3 {[%clk 0:02:47.3]} 6... b6 {[%clk 0:02:47.1]}
7. Ne5 {[%clk 0:02:45]} 7... c5 {[%clk 0:02:45.3]} 8. c3 {[%clk 0:02:44.1]} 8...
Bb7 {[%clk 0:02:36.9]} 9. Qf3 {[%clk 0:02:42.4]} 9... Nbd7 {[%clk 0:02:25.5]}
10. h4 {[%clk 0:02:41.6]} 10... Rc8 {[%clk 0:02:19.7]} 11. h5 {[%clk 0:02:39.5]}
11... h6 {[%clk 0:02:18.8]} 12. Qg3 {[%clk 0:02:38.5]} 12... Kh8 {[%clk
0:02:10.7]} 13. Qf3 {[%clk 0:02:15.7]} 13... Nxe5 {[%clk 0:01:52.9]} 14. Bxe5
{[%clk 0:02:10.9]} 14... Nd7 {[%clk 0:01:46.9]} 15. Bg3 {[%clk 0:02:03.8]} 15...
f5 {[%clk 0:01:38]} 16. Bf4 {[%clk 0:01:59.8]} 16... Nf6 {[%clk 0:01:34.3]} 17.
Qe2 {[%clk 0:01:52.8]} 17... Bd6 {[%clk 0:01:25]} 18. Nf3 {[%clk 0:01:49.9]}
18... Ng4 {[%clk 0:01:11.2]} 19. Nh4 {[%clk 0:01:44.5]} 19... Re8 {[%clk
0:01:00.6]} 20. Ng6+ {[%clk 0:01:43.7]} 20... Kg8 {[%clk 0:01:00]} 21. Bxd6
{[%clk 0:01:35.8]} 21... Qxd6 {[%clk 0:00:59.2]} 22. f3 {[%clk 0:01:34.1]} 22...
Nf6 {[%clk 0:00:47.3]} 23. f4 {[%clk 0:01:27.2]} 23... Ng4 {[%clk 0:00:38]} 24.
Ne5 {[%clk 0:01:23]} 24... Nf6 {[%clk 0:00:37]} 25. Kf2 {[%clk 0:01:09.5]} 25...
a6 {[%clk 0:00:35.2]} 26. a3 {[%clk 0:01:08.5]} 26... b5 {[%clk 0:00:33.6]} 27.
g4 {[%clk 0:01:02.6]} 27... fxg4 {[%clk 0:00:31.8]} 28. Nxg4 {[%clk 0:01:02.3]}
28... Ne4+ {[%clk 0:00:25.9]} 29. Bxe4 {[%clk 0:01:01.4]} 29... dxe4 {[%clk
0:00:25.4]} 30. Rhg1 {[%clk 0:00:59.3]} 30... Rf8 {[%clk 0:00:20.5]} 31. Nxh6+
{[%clk 0:00:55.2]} 31... Kh7 {[%clk 0:00:19.8]} 32. Qg4 {[%clk 0:00:50.6]} 32...
Qe7 {[%clk 0:00:19.1]} 33. Qg6+ {[%clk 0:00:48.1]} 33... Kh8 {[%clk 0:00:18.8]}
34. Ng4 {[%clk 0:00:39]} 34... cxd4 {[%clk 0:00:18.6]} 35. Kg3 {[%clk
0:00:31.7]} 35... dxe3 {[%clk 0:00:18.2]} 36. h6 {[%clk 0:00:31.5]} 36... Rf5
{[%clk 0:00:16.3]} 37. hxg7+ {[%clk 0:00:30.6]} 37... Qxg7 {[%clk 0:00:15.8]}
38. Rh1+ {[%clk 0:00:29.9]} 38... Kg8 {[%clk 0:00:15.5]} 39. Qxe6+ {[%clk
0:00:29.3]} 39... Rf7 {[%clk 0:00:13.9]} 40. Rh5 {[%clk 0:00:27.9]} 40... Kf8
{[%clk 0:00:13.6]} 41. Qd6+ {[%clk 0:00:26.2]} 41... Re7 {[%clk 0:00:12.6]} 42.
Rg5 {[%clk 0:00:21.9]} 42... Qh7 {[%clk 0:00:11.7]} 43. Nf6 {[%clk 0:00:18.8]}
43... Qf7 {[%clk 0:00:11.3]} 44. Rh1 {[%clk 0:00:17.9]} 1-0

[Event "*** Titled Tuesday Blitz"]
[Site "Chess.com"]
[Date "2020.11.24"]
[Round "1"]
[White "Agoking701"]
[Black "JonahWillow"]
[Result "0-1"]
[WhiteElo "2341"]
[BlackElo "2659"]
[TimeControl "180+1"]
[EndTime "10:22:38 PST"]
[Termination "JonahWillow won by resignation"]

1. e4 {[%clk 0:03:00.9]} 1... c5 {[%clk 0:02:25.3]} 2. Nf3 {[%clk 0:02:59.6]}
2... Nc6 {[%clk 0:02:24.9]} 3. Nc3 {[%clk 0:02:58.8]} 3... g6 {[%clk 0:02:24.4]}
4. h4 {[%clk 0:02:55.6]} 4... Bg7 {[%clk 0:02:24.4]} 5. h5 {[%clk 0:02:53.4]}
5... d6 {[%clk 0:02:24.6]} 6. Bc4 {[%clk 0:02:52.7]} 6... e6 {[%clk 0:02:07.3]}
7. d3 {[%clk 0:02:49.4]} 7... Nge7 {[%clk 0:01:59]} 8. Bg5 {[%clk 0:02:48.5]}
8... a6 {[%clk 0:01:51.1]} 9. h6 {[%clk 0:02:46.1]} 9... Bf8 {[%clk 0:01:49.3]}
10. a4 {[%clk 0:02:44]} 10... Rb8 {[%clk 0:01:44.7]} 11. d4 {[%clk 0:02:31]}
11... cxd4 {[%clk 0:01:39.6]} 12. Nxd4 {[%clk 0:02:31.9]} 12... Qb6 {[%clk
0:01:29.2]} 13. Bf6 {[%clk 0:02:15.4]} 13... Rg8 {[%clk 0:01:28.6]} 14. Bb3
{[%clk 0:02:07.4]} 14... Na5 {[%clk 0:01:13]} 15. Qd3 {[%clk 0:01:49.7]} 15...
Bd7 {[%clk 0:01:09.3]} 16. f4 {[%clk 0:01:35.9]} 16... Nec6 {[%clk 0:01:07.3]}
17. O-O-O {[%clk 0:01:25.1]} 17... Nxd4 {[%clk 0:01:04.9]} 18. Bxd4 {[%clk
0:01:24.3]} 18... Nxb3+ {[%clk 0:01:05]} 19. cxb3 {[%clk 0:01:24.9]} 19... Qxb3
{[%clk 0:01:05.9]} 20. Kb1 {[%clk 0:01:17]} 20... Bxa4 {[%clk 0:01:00.2]} 21. f5
{[%clk 0:01:01.5]} 21... gxf5 {[%clk 0:00:57.8]} 22. exf5 {[%clk 0:01:02]} 22...
e5 {[%clk 0:00:55.1]} 23. Rhe1 {[%clk 0:00:58.5]} 23... Bb5 {[%clk 0:00:40.4]}
24. Nxb5 {[%clk 0:00:52.1]} 24... Qxd3+ {[%clk 0:00:41.3]} 25. Rxd3 {[%clk
0:00:52]} 25... axb5 {[%clk 0:00:42.2]} 26. Bxe5 {[%clk 0:00:37.3]} 26... Kd7
{[%clk 0:00:42.6]} 27. Red1 {[%clk 0:00:31.2]} 27... Rxg2 {[%clk 0:00:37.9]} 28.
Bxd6 {[%clk 0:00:31.1]} 28... Bxd6 {[%clk 0:00:34.2]} 29. Rxd6+ {[%clk
0:00:28.7]} 29... Ke8 {[%clk 0:00:35.1]} 30. f6 {[%clk 0:00:24.6]} 30... Rg6
{[%clk 0:00:33.8]} 31. Re1+ {[%clk 0:00:24.4]} 31... Kf8 {[%clk 0:00:33.7]} 32.
Red1 {[%clk 0:00:24.5]} 32... Re8 {[%clk 0:00:32.4]} 33. Rb6 {[%clk 0:00:23.2]}
33... Rxh6 {[%clk 0:00:31.4]} 34. Rd7 {[%clk 0:00:23.2]} 34... Rg6 {[%clk
0:00:29]} 35. Ka2 {[%clk 0:00:22.1]} 35... h5 {[%clk 0:00:28.2]} 36. Rd4 {[%clk
0:00:21.5]} 36... Rh6 {[%clk 0:00:26.3]} 37. Rh4 {[%clk 0:00:20.3]} 37... Ra8+
{[%clk 0:00:24.7]} 38. Kb3 {[%clk 0:00:19.9]} 38... Ra4 {[%clk 0:00:24.8]} 39.
Rh3 {[%clk 0:00:16.6]} 39... h4 {[%clk 0:00:22.7]} 40. Rxb7 {[%clk 0:00:16.9]}
40... Rxf6 {[%clk 0:00:22.8]} 41. Rxb5 {[%clk 0:00:16.9]} 41... Rg4 {[%clk
0:00:23.1]} 42. Rh5 {[%clk 0:00:12.8]} 42... Rg3+ {[%clk 0:00:17.9]} 43. Rxg3
{[%clk 0:00:10.2]} 43... hxg3 {[%clk 0:00:18.8]} 44. Rg5 {[%clk 0:00:08.8]}
44... Rg6 {[%clk 0:00:18.5]} 45. Rd5 {[%clk 0:00:04.9]} 45... g2 {[%clk
0:00:18.7]} 0-1

[Event "*** Titled Tuesday Blitz"]
[Site "Chess.com"]
[Date "2020.11.24"]
[Round "1"]
[White "Roman_Ovetchkin"]
[Black "sopo-tereladze"]
[Result "1-0"]
[WhiteElo "2617"]
[BlackElo "2325"]
[TimeControl "180+1"]
[EndTime "10:22:41 PST"]
[Termination "Roman_Ovetchkin won on time"]

1. d4 {[%clk 0:02:59.7]} 1... Nf6 {[%clk 0:02:58.5]} 2. c4 {[%clk 0:02:58.5]}
2... e6 {[%clk 0:02:58.6]} 3. Nf3 {[%clk 0:02:58.1]} 3... d5 {[%clk 0:02:53.9]}
4. g3 {[%clk 0:02:57.9]} 4... Be7 {[%clk 0:02:52.8]} 5. Bg2 {[%clk 0:02:57.9]}
5... O-O {[%clk 0:02:53.1]} 6. O-O {[%clk 0:02:55.5]} 6... dxc4 {[%clk 0:02:54]}
7. Qc2 {[%clk 0:02:55.5]} 7... c5 {[%clk 0:02:42.4]} 8. dxc5 {[%clk 0:02:50.6]}
8... Qc7 {[%clk 0:02:38]} 9. Qxc4 {[%clk 0:02:47.1]} 9... Qxc5 {[%clk
0:02:37.7]} 10. Na3 {[%clk 0:02:44.3]} 10... Nc6 {[%clk 0:02:33.3]} 11. Qxc5
{[%clk 0:02:07.6]} 11... Bxc5 {[%clk 0:02:34.2]} 12. Nc4 {[%clk 0:02:07.9]}
12... Rd8 {[%clk 0:02:17]} 13. Bg5 {[%clk 0:02:02.4]} 13... h6 {[%clk
0:02:08.5]} 14. Bxf6 {[%clk 0:02:01.6]} 14... gxf6 {[%clk 0:02:09.4]} 15. Rfd1
{[%clk 0:01:57.3]} 15... Bd7 {[%clk 0:02:07.9]} 16. e3 {[%clk 0:01:50.2]} 16...
Be8 {[%clk 0:01:58.2]} 17. a3 {[%clk 0:01:44.1]} 17... Rxd1+ {[%clk 0:01:53.8]}
18. Rxd1 {[%clk 0:01:41.9]} 18... Rd8 {[%clk 0:01:54.7]} 19. Rc1 {[%clk
0:01:23.7]} 19... Be7 {[%clk 0:01:35.6]} 20. b4 {[%clk 0:01:16.5]} 20... b5
{[%clk 0:01:14]} 21. Ncd2 {[%clk 0:01:03.7]} 21... f5 {[%clk 0:01:08]} 22. Nb3
{[%clk 0:01:00.2]} 22... Bf6 {[%clk 0:01:03.6]} 23. Nfd2 {[%clk 0:00:52.5]}
23... Ne5 {[%clk 0:00:51.4]} 24. Rc7 {[%clk 0:00:45.5]} 24... Nc4 {[%clk
0:00:44.1]} 25. Nxc4 {[%clk 0:00:37.6]} 25... bxc4 {[%clk 0:00:45]} 26. Rxc4
{[%clk 0:00:37.4]} 26... Rd1+ {[%clk 0:00:43.1]} 27. Bf1 {[%clk 0:00:37]} 27...
Bb5 {[%clk 0:00:38.8]} 28. Rc1 {[%clk 0:00:36]} 28... Rxc1 {[%clk 0:00:19.5]}
29. Nxc1 {[%clk 0:00:36.9]} 29... Bxf1 {[%clk 0:00:18.8]} 30. Kxf1 {[%clk
0:00:37.8]} 30... Bb2 {[%clk 0:00:17.9]} 31. Nd3 {[%clk 0:00:38.1]} 31... Bxa3
{[%clk 0:00:17.7]} 32. f4 {[%clk 0:00:37.7]} 32... Kf8 {[%clk 0:00:16]} 33. Ke2
{[%clk 0:00:37.9]} 33... f6 {[%clk 0:00:15.6]} 34. Kd2 {[%clk 0:00:37.9]} 34...
e5 {[%clk 0:00:14.6]} 35. Kc3 {[%clk 0:00:37.9]} 35... e4 {[%clk 0:00:14.2]} 36.
Nc5 {[%clk 0:00:18.8]} 36... Bc1 {[%clk 0:00:12.7]} 37. Ne6+ {[%clk 0:00:18.3]}
37... Ke7 {[%clk 0:00:10.1]} 38. Nd4 {[%clk 0:00:18.5]} 38... h5 {[%clk
0:00:07.6]} 39. h3 {[%clk 0:00:18.8]} 39... a6 {[%clk 0:00:06]} 40. Kc4 {[%clk
0:00:17.6]} 40... Kd7 {[%clk 0:00:01.9]} 41. Nxf5 {[%clk 0:00:17.2]} 41... Ke6
{[%clk 0:00:02]} 42. g4 {[%clk 0:00:17.3]} 42... hxg4 {[%clk 0:00:01.4]} 43.
hxg4 {[%clk 0:00:18.2]} 43... Kf7 {[%clk 0:00:01.6]} 44. Kd5 {[%clk 0:00:17.1]}
1-0

[Event "*** Titled Tuesday Blitz"]
[Site "Chess.com"]
[Date "2020.11.24"]
[Round "1"]
[White "Das_Virus_2020"]
[Black "Taktikmonster"]
[Result "1-0"]
[WhiteElo "2500"]
[BlackElo "2081"]
[TimeControl "180+1"]
[EndTime "10:22:42 PST"]
[Termination "Das_Virus_2020 won on time"]

1. e4 {[%clk 0:02:55.5]} 1... c5 {[%clk 0:02:56.5]} 2. Nc3 {[%clk 0:02:54.4]}
2... Nc6 {[%clk 0:02:55.9]} 3. f4 {[%clk 0:02:54.4]} 3... g6 {[%clk 0:02:55.3]}
4. Nf3 {[%clk 0:02:54.4]} 4... Bg7 {[%clk 0:02:55.5]} 5. Bc4 {[%clk 0:02:54.3]}
5... e6 {[%clk 0:02:55]} 6. f5 {[%clk 0:02:54.7]} 6... gxf5 {[%clk 0:02:50.1]}
7. d3 {[%clk 0:02:53.9]} 7... Nge7 {[%clk 0:02:47.2]} 8. O-O {[%clk 0:02:53.1]}
8... d5 {[%clk 0:02:37.7]} 9. exd5 {[%clk 0:02:50.7]} 9... exd5 {[%clk
0:02:38.6]} 10. Bb3 {[%clk 0:02:49.4]} 10... b5 {[%clk 0:02:33]} 11. Nxb5 {[%clk
0:02:33.5]} 11... Ba6 {[%clk 0:01:56]} 12. a4 {[%clk 0:02:16.3]} 12... Na5
{[%clk 0:01:54.9]} 13. Ba2 {[%clk 0:02:11.2]} 13... Qb6 {[%clk 0:01:50]} 14. c4
{[%clk 0:01:53.9]} 14... dxc4 {[%clk 0:01:50.9]} 15. dxc4 {[%clk 0:01:53.6]}
15... Rd8 {[%clk 0:01:51.4]} 16. Qe1 {[%clk 0:01:51.6]} 16... Nc6 {[%clk
0:01:45.1]} 17. Qh4 {[%clk 0:01:43.3]} 17... Bxb5 {[%clk 0:01:38.4]} 18. cxb5
{[%clk 0:01:37.3]} 18... Nd4 {[%clk 0:01:39]} 19. Bg5 {[%clk 0:01:26.7]} 19...
Ng6 {[%clk 0:01:12.2]} 20. Qh3 {[%clk 0:01:09.8]} 20... Ne6 {[%clk 0:00:36.1]}
21. Bxd8 {[%clk 0:01:02.7]} 21... Qxd8 {[%clk 0:00:19.2]} 22. Qxf5 {[%clk
0:01:01.5]} 22... O-O {[%clk 0:00:15.9]} 23. Rad1 {[%clk 0:00:58.4]} 23... Nd4
{[%clk 0:00:11.9]} 24. Nxd4 {[%clk 0:00:54.6]} 24... Bxd4+ {[%clk 0:00:12.8]}
25. Kh1 {[%clk 0:00:54.1]} 25... Qc7 {[%clk 0:00:11.9]} 26. b4 {[%clk
0:00:46.1]} 26... Kg7 {[%clk 0:00:11.1]} 27. bxc5 {[%clk 0:00:44.7]} 27... Bxc5
{[%clk 0:00:11.2]} 28. Rd7 {[%clk 0:00:38]} 28... Qb6 {[%clk 0:00:04.8]} 29.
Rxf7+ {[%clk 0:00:36.8]} 29... Rxf7 {[%clk 0:00:04.1]} 30. Qxf7+ {[%clk
0:00:36.4]} 30... Kh6 {[%clk 0:00:04.7]} 31. Qf3 {[%clk 0:00:34.3]} 31... Qd6
{[%clk 0:00:03.1]} 32. Qh3+ {[%clk 0:00:28.2]} 32... Kg5 {[%clk 0:00:02.2]} 33.
Qg3+ {[%clk 0:00:27]} 33... Qxg3 {[%clk 0:00:02.4]} 34. hxg3 {[%clk 0:00:27.9]}
34... Ne5 {[%clk 0:00:02.8]} 35. Be6 {[%clk 0:00:23.1]} 35... Kg6 {[%clk
0:00:01.7]} 36. Rc1 {[%clk 0:00:20.9]} 36... Bd4 {[%clk 0:00:01.7]} 37. a5
{[%clk 0:00:20]} 37... Kf6 {[%clk 0:00:01.6]} 38. Bc8 {[%clk 0:00:17.5]} 38...
Nd3 {[%clk 0:00:02]} 39. Rb1 {[%clk 0:00:16.3]} 39... Nf2+ {[%clk 0:00:02.4]}
40. Kh2 {[%clk 0:00:16.5]} 40... Be5 {[%clk 0:00:02.6]} 41. b6 {[%clk
0:00:15.3]} 41... axb6 {[%clk 0:00:02.5]} 42. axb6 {[%clk 0:00:15.4]} 42... Ne4
{[%clk 0:00:03.2]} 43. Rb3 {[%clk 0:00:12.8]} 43... Ke7 {[%clk 0:00:01.8]} 44.
b7 {[%clk 0:00:12.8]} 44... Bb8 {[%clk 0:00:02]} 45. Re3 {[%clk 0:00:11.8]} 1-0